bitfinex/quotes_SOLUSD_20240827
["timestamp","ask_amount","ask_price","bid_price","bid_amount"]
[1724761838458,20.0,153.94,153.93,6.4964]
[1724761838711,1.12898142,153.97,153.93,6.4964]
[1724761838712,21.12898142,153.97,153.93,6.4964]
[1724761839271,27.62378142,153.97,153.92,6.4968]
[1724761840676,27.62378142,153.97,153.91,17.54198007]
[1724761840677,6.4961,153.94,153.91,1.29938007]
[1724761840851,21.12898142,153.97,153.93,6.4963]
[1724761841054,20.0,153.99,153.93,6.4963]
[1724761841384,20.0,153.99,153.94,1.29915246]
[1724761841558,20.0,153.99,153.93,16.2401]
[1724761841758,26.4942,153.99,153.94,7.79501]
[1724761842074,4.9943,153.98,153.93,24.03556163]
[1724761842475,6.4939,153.99,153.93,17.53916163]
[1724761842787,20.0,153.98,153.94,51.87237]
[1724761843370,26.4945,153.98,153.93,22.7364]
[1724761843573,6.4947,153.97,153.93,16.2401]
[1724761843888,20.0,153.96,153.92,15.911]
[1724761844214,6.4952,153.96,153.92,15.911]
[1724761844389,20.0,153.97,153.9,16.244]
[1724761844574,20.0,153.97,153.91,45.25098]
[1724761844903,6.496,153.94,153.9,16.244]
[1724761846281,6.496,153.94,153.9,22.7417]
[1724761846780,6.4957,153.95,153.9,22.7417]
[1724761846991,26.4961,153.94,153.9,16.244]
[1724761850191,26.4951,153.97,153.92,16.2415]
[1724761850372,6.4953,153.96,153.92,16.2415]
[1724761850691,20.0,153.95,153.92,16.2415]
[1724761851690,26.4956,153.95,153.92,16.2415]
[1724761852197,26.4956,153.95,153.9,6.4976]
[1724761852499,6.496,153.94,153.9,6.4976]
[1724761854788,26.4957,153.95,153.9,6.4976]
[1724761854999,20.0,153.95,153.91,6.4972]
[1724761855484,26.4957,153.95,153.91,6.4972]
[1724761857593,20.0,153.95,153.9,6.4975]
[1724761857803,6.4957,153.95,153.9,6.4975]
[1724761859515,26.4955,153.96,153.91,6.4969]
[1724761859679,26.4955,153.96,153.92,6.4968]
[1724761860504,20.0,153.96,153.91,16.2429]
[1724761860714,26.01397105,153.97,153.9,6.4975]
[1724761860882,26.01397105,153.95,153.88,31.2661]
[1724761861188,20.0,153.94,153.89,22.4957]
[1724761861395,6.4965,153.93,153.89,15.9978]
[1724761861596,20.0,153.92,153.89,15.9978]
[1724761861891,20.0,153.94,153.89,15.9978]
[1724761862302,6.4964,153.93,153.89,15.9978]
[1724761862496,20.0,153.92,153.88,22.7445]
[1724761862696,20.0,153.92,153.88,22.7446]
[1724761863998,26.4969,153.92,153.88,16.2461]
[1724761865801,6.4973,153.91,153.86,6.4993]
[1724761866005,6.4978,153.9,153.85,15.4298]
[1724761866316,46.01397105,153.89,153.81,32.6726]
[1724761866484,6.4986,153.88,153.83,6.5006]
[1724761866991,52.51217105,153.89,153.84,6.5001]
[1724761867194,26.4982,153.89,153.84,6.5001]
[1724761867886,6.4987,153.88,153.83,6.5006]
[1724761868611,6.4991,153.87,153.82,6.501]
[1724761869280,6.4997,153.86,153.81,32.6726]
[1724761870506,6.4997,153.86,153.81,16.2537]
[1724761870688,6.4997,153.86,153.81,22.7552]
[1724761870886,6.5001,153.85,153.78,16.2569]
[1724761871088,6.5001,153.85,153.79,45.0]
[1724761871907,6.5008,153.83,153.79,45.0]
[1724761872110,6.5003,153.84,153.79,51.5019]
[1724761872403,6.4998,153.85,153.79,51.5019]
[1724761873189,6.4998,153.85,153.8,6.5019]
[1724761873590,6.5004,153.84,153.79,51.5023]
[1724761874282,6.5004,153.84,153.79,52.80253602]
[1724761874594,6.4998,153.85,153.8,6.5018]
[1724761876308,6.4998,153.85,153.8,7.80203589]
[1724761876613,6.4998,153.85,153.8,6.5018]
[1724761877307,6.4998,153.85,153.81,6.5015]
[1724761877681,6.5552,153.88,153.82,7.80117797]
[1724761878082,20.0,153.87,153.83,17.55093163]
[1724761878312,41.9719,153.89,153.84,6.5002]
[1724761878499,6.4986,153.88,153.83,22.7515]
[1724761878704,26.499,153.87,153.83,22.7515]
[1724761880191,26.499,153.87,153.83,16.2509]
[1724761882112,20.0,153.87,153.84,6.5001]
[1724761882290,20.0,153.88,153.84,6.5001]
[1724761882490,6.4986,153.88,153.83,22.7515]
[1724761882713,20.0,153.87,153.83,22.7515]
[1724761883894,20.0,153.87,153.83,16.2509]
[1724761884096,20.0,153.88,153.83,16.2509]
[1724761884296,20.0,153.88,153.84,51.5001]
[1724761885210,26.4985,153.88,153.84,51.5001]
[1724761885418,26.4985,153.88,153.83,22.7515]
[1724761886016,6.4995,153.86,153.82,6.5009]
[1724761887506,6.499,153.87,153.82,6.5009]
[1724761887708,20.0,153.86,153.82,6.5009]
[1724761888021,26.4994,153.86,153.82,6.5009]
[1724761888528,26.4994,153.86,153.81,6.5014]
[1724761888728,26.4994,153.86,153.82,6.501]
[1724761890319,26.4994,153.86,153.82,5.401]
[1724761890531,20.0,153.86,153.82,16.2523]
[1724761890694,6.4986,153.88,153.82,16.2523]
[1724761890695,20.0,153.87,153.82,16.2523]
[1724761891010,20.0,153.87,153.83,6.5005]
[1724761891213,26.4991,153.87,153.83,6.5005]
[1724761891599,26.4991,153.87,153.82,22.7532]
[1724761891931,6.4994,153.86,153.82,22.7532]
[1724761894820,26.499,153.87,153.83,52.80062888]
[1724761895026,20.0,153.87,153.83,51.5006]
[1724761895411,20.0,153.87,153.84,7.79994923]
[1724761895611,20.0,153.88,153.84,7.79994923]
[1724761896608,20.0,153.88,153.84,17.54964923]
[1724761896911,20.0,153.89,153.86,22.747]
[1724761897126,20.0,153.9,153.85,51.62519]
[1724761897323,20.0,153.91,153.85,45.0]
[1724761897524,26.01044394,153.9,153.85,45.0]
[1724761897719,20.0,153.89,153.84,45.0]
[1724761898324,26.4984,153.89,153.84,51.5001]
[1724761898836,6.4986,153.88,153.84,45.0]
[1724761899031,6.4986,153.88,153.83,22.7518]
[1724761899834,6.4986,153.88,153.84,6.5001]
[1724761900017,26.01044394,153.88,153.82,15.3293]
[1724761900210,20.0,153.87,153.8,16.2546]
[1724761900421,6.5001,153.85,153.8,16.2546]
[1724761900638,6.4994,153.86,153.81,1.30024686]
[1724761901043,6.4994,153.86,153.8,16.2546]
[1724761901343,6.4999,153.85,153.81,6.5014]
[1724761901837,6.5004,153.84,153.8,22.7565]
[1724761903639,6.4999,153.85,153.81,7.8016559]
[1724761903842,6.4999,153.85,153.81,52.8016559]
[1724761905339,26.4994,153.87,153.82,6.5009]
[1724761905544,26.4994,153.87,153.83,45.0]
[1724761905731,26.4994,153.87,153.83,46.2999335]
[1724761906415,20.0,153.87,153.83,45.0]
[1724761906731,20.0,153.89,153.84,7.80013366]
[1724761907516,20.0,153.9,153.84,7.80013366]
[1724761907715,6.4982,153.89,153.84,7.80013366]
[1724761907942,20.0,153.88,153.84,7.80013366]
[1724761908316,20.0,153.88,153.85,45.0]
[1724761908917,20.0,153.88,153.85,46.29976451]
[1724761909148,20.0,153.88,153.85,45.0]
[1724761909325,26.4986,153.88,153.83,6.75128]
[1724761909517,26.4986,153.88,153.84,45.0]
[1724761912640,26.4986,153.88,153.85,21.9959]
[1724761912847,1.1298484,153.91,153.9,6.62319]
[1724761913017,3.35457182,153.99,153.91,0.12549]
[1724761913219,7.62375692,153.98,153.92,6.4964]
[1724761913416,6.4944,153.98,153.93,7.79534631]
[1724761913922,6.4944,153.98,153.93,6.4962]
[1724761914132,6.4944,153.98,153.93,7.79535221]
[1724761914339,6.4944,153.98,153.93,6.4962]
[1724761914639,20.0,153.97,153.93,6.4962]
[1724761915244,20.0,153.97,153.93,7.79535197]
[1724761915639,26.4948,153.97,153.92,22.7384]
[1724761921451,26.4948,153.97,153.89,22.7425]
[1724761921452,6.4963,153.94,153.89,22.7425]
[1724761921740,20.0,153.93,153.89,22.7425]
[1724761922449,20.0,153.93,153.9,7.7970908]
[1724761922742,20.0,153.94,153.91,61.2425]
[1724761922949,20.0,153.98,153.92,1.29919246]
[1724761923133,6.4951,153.97,153.92,7.79589246]
[1724761923336,20.0,153.96,153.92,7.79589246]
[1724761925060,26.4952,153.96,153.92,7.79589246]
[1724761925463,26.4952,153.96,153.92,6.4967]
[1724761926164,26.4952,153.96,153.91,67.7394]
[1724761927158,20.0,153.96,153.92,1.29925234]
[1724761927366,20.0,153.96,153.93,1.2991465]
[1724761928640,20.0,153.96,153.93,6.4963]
[1724761928960,20.0,153.96,153.92,22.4113]
[1724761931266,26.4952,153.96,153.92,22.4113]
[1724761931558,46.01044394,153.96,153.88,16.5136]
[1724761931764,6.4972,153.92,153.88,32.7595]
[1724761931949,6.4973,153.91,153.87,6.4986]
[1724761932154,6.4979,153.9,153.85,16.2489]
[1724761932343,26.4979,153.9,153.85,22.7486]
[1724761932544,26.4979,153.9,153.84,16.5136]
[1724761932545,46.01044394,153.9,153.84,16.5136]
[1724761933647,6.4982,153.89,153.84,23.0137]
[1724761933864,6.4986,153.88,153.84,16.5136]
[1724761934070,6.4986,153.88,153.83,6.5006]
[1724761935245,6.4981,153.89,153.84,52.80008078]
[1724761935463,20.0,153.88,153.84,52.80008078]
[1724761935663,6.499,153.87,153.84,45.0]
[1724761935862,6.499,153.87,153.83,45.0]
[1724761936067,20.0,153.86,153.83,45.0]
[1724761936255,20.0,153.86,153.83,7.80056221]
[1724761936587,20.0,153.86,153.83,6.5006]
[1724761936865,20.0,153.86,153.82,22.7534]
[1724761937068,20.0,153.86,153.83,1.29997996]
[1724761937374,20.0,153.86,153.82,22.7534]
[1724761937544,20.0,153.86,153.83,45.0]
[1724761937852,20.0,153.86,153.83,52.8005799]
[1724761938057,20.0,153.87,153.83,52.8005799]
[1724761939266,20.0,153.87,153.83,51.5006]
[1724761940646,26.499,153.87,153.83,51.5006]
[1724761940952,26.499,153.87,153.83,45.0]
[1724761941262,6.4995,153.86,153.82,16.2524]
[1724761942176,20.0,153.87,153.8,15.1732]
[1724761942177,26.4998,153.85,153.8,6.5018]
[1724761943161,20.0,153.85,153.81,6.5014]
[1724761943760,20.0,153.85,153.79,16.2556]
[1724761943761,20.0,153.85,153.8,6.5018]
[1724761943976,6.5002,153.84,153.79,22.7579]
[1724761944482,20.0,153.85,153.81,6.5014]
[1724761947355,26.5001,153.85,153.8,6.5018]
[1724761947677,6.5007,153.83,153.78,6.5027]
[1724761947854,6.5007,153.83,153.79,6.5022]
[1724761948057,20.0,153.82,153.79,6.5022]
[1724761949378,20.0,153.82,153.8,6.5017]
[1724761949580,20.0,153.84,153.81,51.5012]
[1724761949877,6.4999,153.85,153.81,51.5012]
[1724761950049,20.0,153.84,153.81,6.5012]
[1724761951170,20.0,153.84,153.82,6.501]
[1724761951475,20.0,153.86,153.83,6.5004]
[1724761951660,6.4989,153.87,153.83,6.5004]
[1724761952681,6.4994,153.86,153.82,67.7531]
[1724761952967,6.4994,153.86,153.82,16.2521]
[1724761953149,20.0,153.85,153.82,16.2521]
[1724761953749,26.4999,153.85,153.81,6.5011]
[1724761953952,26.4999,153.85,153.8,6.5018]
[1724761954484,6.5004,153.84,153.79,22.7577]
[1724761954780,6.5004,153.84,153.8,6.5018]
[1724761955480,6.5004,153.84,153.79,22.7578]
[1724761955772,20.0,153.83,153.79,22.7578]
[1724761956458,6.5011,153.82,153.76,32.2825]
[1724761956657,20.0,153.81,153.76,32.2825]
[1724761957765,26.5015,153.81,153.77,6.503]
[1724761958384,20.0,153.81,153.78,7.80320306]
[1724761958686,20.0,153.81,153.78,6.5027]
[1724761960063,20.0,153.82,153.79,6.502]
[1724761960264,20.0,153.83,153.79,6.502]
[1724761960470,26.5008,153.83,153.79,6.502]
[1724761960660,26.5008,153.83,153.78,22.7589]
[1724761961667,6.5012,153.82,153.78,22.7589]
[1724761963695,20.0,153.81,153.78,22.7589]
[1724761963870,20.0,153.81,153.78,16.2562]
[1724761964057,20.0,153.81,153.78,17.5566294]
[1724761964258,26.5003,153.84,153.78,17.5566294]
[1724761964480,20.0,153.84,153.79,45.0]
[1724761964681,6.4998,153.85,153.8,1.30015489]
[1724761964888,6.4998,153.85,153.79,45.0]
[1724761965760,6.4998,153.85,153.81,6.5014]
[1724761966063,7.62946633,153.87,153.82,1.42571389]
[1724761966268,387.7986,153.88,153.83,7.8002862]
[1724761967176,6.4986,153.88,153.83,7.8002862]
[1724761967468,6.4986,153.88,153.83,6.5003]
[1724761967669,26.499,153.87,153.83,6.5003]
[1724761968897,20.0,153.87,153.84,16.25]
[1724761969072,1.12998595,153.89,153.84,22.7502]
[1724761969273,1.12998595,153.89,153.84,16.25]
[1724761969469,7.62838595,153.89,153.84,22.7501]
[1724761969693,20.0,153.88,153.84,22.7501]
[1724761969992,7.62838595,153.89,153.84,22.7501]
[1724761970694,6.4986,153.88,153.84,22.7501]
[1724761970992,6.4986,153.88,153.84,16.25]
[1724761971191,20.0,153.87,153.84,16.25]
[1724761972196,20.0,153.87,153.84,22.7502]
[1724761972400,20.0,153.88,153.85,1.29987685]
[1724761972878,20.0,153.88,153.84,22.7502]
[1724761974273,20.0,153.88,153.85,6.4995]
[1724761974491,21.12998595,153.89,153.86,1.29974026]
[1724761974673,20.0,153.89,153.87,6.4986]
[1724761975000,26.4974,153.91,153.86,24.04684026]
[1724761975176,26.4974,153.91,153.86,22.7471]
[1724761975488,26.4973,153.91,153.87,45.0]
[1724761975693,26.4973,153.91,153.86,22.7471]
[1724761977391,26.4973,153.91,153.87,46.2997334]
[1724761978197,20.0,153.91,153.86,22.7471]
[1724761978484,6.4976,153.91,153.86,22.7471]
[1724761978692,20.0,153.9,153.86,22.7471]
[1724761979078,20.0,153.9,153.87,46.29964739]
[1724761979771,20.0,153.9,153.87,52.79834739]
[1724761979976,20.0,153.91,153.87,52.79834739]
[1724761980566,1.1296364,153.94,153.91,6.497]
[1724761980771,1.1296364,153.94,153.93,6.4964]
[1724761980988,1.1296364,153.94,153.93,52.79551892]
[1724761981348,6.4947,153.98,153.93,52.79551892]
[1724761981497,6.494,153.99,153.94,51.4959]
[1724761981795,1.12940083,153.96,153.95,7.7943764]
[1724761981995,6.4922,154.03,153.96,0.12549]
[1724761982206,6.4922,154.03,153.98,6.4942]
[1724761982495,672.07551576,154.09,154.01,16.2326]
[1724761982676,413.32094394,154.09,154.02,6.4922]
[1724761982877,413.32094394,154.09,154.01,22.7256]
[1724761982878,6.4906,154.07,154.01,22.7256]
[1724761983292,6.4911,154.06,154.02,1.29842878]
[1724761984398,20.0,154.05,154.02,1.29842878]
[1724761984889,6.4911,154.06,154.02,1.29842878]
[1724761985090,6.4911,154.06,154.02,45.0]
[1724761985296,6.4911,154.06,154.01,22.7256]
[1724761985495,6.491,154.06,154.02,1.29840585]
[1724761985796,6.491,154.06,154.02,46.29840585]
[1724761986002,6.491,154.06,154.02,45.0]
[1724761986179,20.0,154.05,154.02,45.0]
[1724761986706,20.0,154.05,154.02,46.29828064]
[1724761987294,26.4914,154.05,154.02,45.0]
[1724761987490,26.4914,154.05,154.01,16.2326]
[1724761987798,6.4921,154.04,153.99,0.12549]
[1724761988016,26.4914,154.05,154.0,6.4934]
[1724761989277,26.4914,154.05,154.01,1.29844952]
[1724761989888,26.4914,154.05,154.02,1.29845669]
[1724761990091,26.4914,154.05,154.01,45.0]
[1724761990490,20.0,154.05,154.01,51.493]
[1724761991917,20.0,154.05,154.02,1.2982875]
[1724761992286,20.0,154.05,154.02,7.7908875]
[1724761992605,20.0,154.06,154.03,51.492]
[1724761992806,20.0,154.07,154.04,1.29819626]
[1724761992994,6.4893,154.1,154.05,7.78928069]
[1724761993196,6.4893,154.1,154.06,45.0]
[1724761994312,6.4904,154.08,154.03,6.74278]
[1724761994501,6.4904,154.08,154.04,46.29818544]
[1724761994901,6.4897,154.09,154.04,51.4914]
[1724761995297,20.0,154.08,154.04,51.4914]
[1724761995491,20.0,154.08,154.05,1.29802753]
[1724761996202,6.4893,154.1,154.05,6.4911]
[1724761996405,6.4893,154.1,154.06,1.29797108]
[1724761996587,20.0,154.09,154.06,46.29797108]
[1724761996902,20.0,154.09,154.06,45.0]
[1724761997223,20.0,154.09,154.07,1.29795821]
[1724761997619,42.03234394,154.15,154.08,1.42344823]
[1724761997794,16.0219,154.15,154.08,1.42344823]
[1724761998614,16.0219,154.15,154.09,1.29772449]
[1724761998794,6.488,154.13,154.09,7.78732449]
[1724761998995,6.488,154.13,154.08,6.49]
[1724761999194,6.488,154.13,154.09,45.0]
[1724762000712,6.488,154.13,154.09,51.4896]
[1724762000905,6.4877,154.14,154.1,1.29776357]
[1724762001103,20.0,154.13,154.1,1.29776357]
[1724762001493,20.0,154.13,154.09,51.4896]
[1724762001707,6.4884,154.12,154.08,38.9046]
[1724762002422,6.4884,154.12,154.09,46.29784101]
[1724762002720,26.4881,154.13,154.09,46.29784101]
[1724762003852,26.4881,154.13,154.09,45.0]
[1724762004827,26.4881,154.13,154.09,46.29776498]
[1724762005026,20.0,154.13,154.09,52.78726498]
[1724762005314,20.0,154.13,154.1,6.4892]
[1724762005520,20.0,154.13,154.11,1.29762502]
[1724762005699,20.0,154.14,154.1,7.78682502]
[1724762005904,20.0,154.14,154.11,1.29764522]
[1724762006317,20.0,154.14,154.12,6.488]
[1724762006620,6.4864,154.17,154.12,7.78546436]
[1724762007519,6.4864,154.17,154.13,1.29743635]
[1724762008110,20.0,154.16,154.13,1.29743635]
[1724762008520,20.0,154.16,154.13,46.29743635]
[1724762008707,20.0,154.16,154.13,52.78533635]
[1724762008913,20.0,154.16,154.14,1.29734003]
[1724762010423,20.0,154.16,154.15,1.29734227]
[1724762010629,6.4856,154.19,154.15,46.29734227]
[1724762010926,20.0,154.18,154.15,46.29734227]
[1724762011439,20.0,154.18,154.15,52.78444227]
[1724762011603,15.8081,154.23,154.16,7.78378373]
[1724762012696,6.485,154.21,154.16,7.78378373]
[1724762013322,20.0,154.2,154.16,7.78378373]
[1724762013626,6.485,154.21,154.16,7.78378373]
[1724762014719,20.0,154.2,154.16,7.78378373]
[1724762015711,26.4852,154.2,154.16,7.78378373]
[1724762016005,6.4856,154.19,154.15,6.4871]
[1724762016719,6.4856,154.19,154.15,7.784369]
[1724762017309,20.0,154.2,154.16,6.4867]
[1724762017502,20.0,154.2,154.17,1.29712177]
[1724762018229,20.0,154.2,154.17,46.29706577]
[1724762018745,20.0,154.2,154.18,1.29705539]
[1724762020006,20.0,154.2,154.17,46.29704379]
[1724762020426,20.0,154.2,154.17,46.29705738]
[1724762020632,20.0,154.2,154.18,1.29705568]
[1724762020930,6.4841,154.23,154.18,7.78295568]
[1724762021235,20.0,154.22,154.18,6.4859]
[1724762021532,20.0,154.24,154.18,6.4859]
[1724762021840,6.4838,154.23,154.19,45.0]
[1724762022011,20.0,154.22,154.19,45.0]
[1724762022335,26.4843,154.22,154.19,45.0]
[1724762022537,26.4843,154.22,154.18,6.4859]
[1724762023234,20.0,154.22,154.16,22.7022]
[1724762023436,6.4847,154.21,154.17,45.0]
[1724762024505,6.4847,154.21,154.17,51.4863]
[1724762025137,6.4843,154.22,154.17,51.4863]
[1724762025438,20.0,154.21,154.18,6.61129]
[1724762025735,20.0,154.21,154.19,45.12549]
[1724762025936,20.0,154.22,154.19,45.0]
[1724762028414,6.4847,154.21,154.19,45.0]
[1724762028747,26.4843,154.22,154.18,45.0]
[1724762035045,20.0,154.22,154.19,8.03321056]
[1724762035251,20.0,154.25,154.2,45.0]
[1724762035552,6.4836,154.24,154.2,45.0]
[1724762035848,20.0,154.23,154.2,45.0]
[1724762036034,20.0,154.23,154.2,51.4847]
[1724762036233,6.4837,154.24,154.2,45.0]
[1724762036537,20.0,154.23,154.2,45.0]
[1724762037037,20.0,154.23,154.21,1.29680358]
[1724762037245,0.8243352,154.26,154.21,1.29680358]
[1724762037422,7.3071352,154.26,154.21,7.78110358]
[1724762037628,0.8243352,154.26,154.22,45.0]
[1724762037839,0.8243352,154.26,154.23,7.78034077]
[1724762038054,0.8243352,154.26,154.24,46.29649079]
[1724762039059,0.8243352,154.26,154.24,45.0]
[1724762039572,20.8243352,154.26,154.24,45.0]
[1724762040366,27.3069352,154.26,154.23,45.0]
[1724762040529,27.3069352,154.26,154.22,16.21]
[1724762040530,27.3069352,154.26,154.21,21.90639]
[1724762040730,27.3069352,154.26,154.22,45.0]
[1724762041374,6.483,154.25,154.22,45.0]
[1724762041962,27.3069352,154.26,154.22,45.0]
[1724762043033,20.8243352,154.26,154.22,52.78064076]
[1724762043249,20.8243352,154.26,154.22,52.78074076]
[1724762043866,20.8243352,154.26,154.22,51.4841]
[1724762044552,20.8243352,154.26,154.23,1.29652276]
[1724762044761,20.8243352,154.26,154.24,1.29652276]
[1724762045367,20.8243352,154.26,154.22,51.4841]
[1724762045664,20.8243352,154.26,154.22,45.0]
[1724762045837,7.3069352,154.26,154.22,45.0]
[1724762046841,0.8243352,154.26,154.22,51.4841]
[1724762047051,20.8243352,154.26,154.22,51.4841]
[1724762047643,27.3069352,154.26,154.22,51.4841]
[1724762049346,6.483,154.25,154.22,45.0]
[1724762049662,6.483,154.25,154.21,45.0]
[1724762050376,6.4841,154.23,154.17,32.7317]
[1724762050853,33.41657914,154.26,154.15,6.4871]
[1724762050854,20.0,154.22,154.15,6.4871]
[1724762051056,26.01044394,154.2,154.14,16.2184]
[1724762051372,20.0,154.19,154.11,16.2218]
[1724762051551,6.4867,154.17,154.11,22.7102]
[1724762051962,20.0,154.19,154.12,1.29738097]
[1724762051963,6.486,154.18,154.12,1.29738097]
[1724762052174,20.0,154.17,154.12,6.4884]
[1724762053482,20.0,154.17,154.14,0.12549]
[1724762053651,20.0,154.18,154.14,0.12549]
[1724762053856,20.0,154.18,154.15,6.4868]
[1724762054056,20.0,154.2,154.16,45.0]
[1724762054366,20.0,154.21,154.16,45.0]
[1724762054551,26.4847,154.21,154.16,45.0]
[1724762054753,26.4847,154.21,154.16,46.29710585]
[1724762055559,6.4851,154.2,154.16,45.0]
[1724762055875,20.0,154.19,154.14,6.61299]
[1724762056083,20.0,154.19,154.15,45.0]
[1724762056409,20.0,154.19,154.16,1.29722283]
[1724762056584,20.0,154.24,154.17,16.2152]
[1724762056752,6.4845,154.22,154.18,45.0]
[1724762056951,6.4842,154.22,154.18,45.0]
[1724762057169,20.0,154.21,154.18,45.0]
[1724762057566,20.0,154.21,154.19,1.29694469]
[1724762057957,20.0,154.21,154.18,45.0]
[1724762059585,20.0,154.22,154.18,45.0]
[1724762060652,6.4847,154.21,154.18,45.0]
[1724762060860,20.0,154.2,154.18,46.29702068]
[1724762061078,1.12939893,154.24,154.19,6.4855]
[1724762061273,7.4061352,154.26,154.2,1.29682382]
[1724762061859,26.01044394,154.25,154.2,1.29682382]
[1724762062263,20.0,154.24,154.21,1.29685645]
[1724762062786,20.0,154.24,154.2,52.78178525]
[1724762063082,20.0,154.24,154.21,1.29682421]
[1724762063293,7.3069352,154.26,154.22,1.2967876]
[1724762063579,7.3069352,154.26,154.22,46.2967876]
[1724762064084,7.3069352,154.26,154.22,1.2967876]
[1724762064579,0.8243352,154.26,154.21,45.12549]
[1724762064882,0.8243352,154.26,154.22,52.90622943]
[1724762065064,20.8243352,154.26,154.22,7.90622943]
[1724762065267,20.8243352,154.26,154.23,45.0]
[1724762067699,27.3072352,154.26,154.23,45.0]
[1724762067980,27.3072352,154.26,154.21,16.33649]
[1724762067981,27.3072352,154.26,154.22,45.0]
[1724762068156,27.3072352,154.26,154.22,46.29666585]
[1724762070384,27.3072352,154.26,154.22,45.0]
[1724762070579,6.4829,154.25,154.22,45.0]
[1724762070768,6.4829,154.25,154.21,22.6956]
[1724762070970,27.3069352,154.26,154.21,22.6956]
[1724762071789,6.483,154.25,154.21,16.211]
[1724762072189,6.4841,154.23,154.18,22.6998]
[1724762072366,26.01044394,154.25,154.18,16.2141]
[1724762072559,6.4845,154.22,154.18,22.6999]
[1724762072760,32.49434394,154.23,154.18,22.6999]
[1724762073067,32.49434394,154.23,154.15,32.1706]
[1724762073068,26.01044394,154.23,154.15,32.1706]
[1724762073267,20.0,154.22,154.15,32.1706]
[1724762074491,6.4846,154.21,154.16,6.4864]
[1724762074668,26.4843,154.22,154.17,7.78326153]
[1724762074873,26.4843,154.22,154.18,1.2969666]
[1724762075266,20.0,154.22,154.18,17.5116666]
[1724762075483,6.4839,154.23,154.18,23.9974666]
[1724762075683,20.0,154.22,154.18,23.9974666]
[1724762075863,20.0,154.22,154.19,1.29696281]
[1724762078270,20.0,154.22,154.2,6.61029]
[1724762078461,0.8243352,154.26,154.21,51.4845]
[1724762079361,7.3069352,154.26,154.21,51.4845]
[1724762079887,20.0,154.25,154.21,51.4845]
[1724762080598,26.4829,154.25,154.21,45.0]
[1724762080778,26.4829,154.25,154.2,22.6969]
[1724762081286,6.4838,154.23,154.17,17.51249606]
[1724762081463,6.4835,154.24,154.19,6.4855]
[1724762085183,6.4835,154.24,154.2,1.29690576]
[1724762085894,6.4835,154.24,154.19,7.78237829]
[1724762086078,6.4839,154.23,154.18,6.61129]
[1724762086287,6.4834,154.24,154.19,45.0]
[1724762087385,52.49344394,154.25,154.19,51.4854]
[1724762087587,52.49344394,154.25,154.2,1.29690467]
[1724762087974,26.483,154.25,154.2,6.4849]
[1724762088177,26.483,154.25,154.21,45.0]
[1724762088399,20.0,154.25,154.21,45.0]
[1724762089582,20.0,154.25,154.21,51.4846]
[1724762089995,30.35644255,154.25,154.21,51.4846]
[1724762090790,36.83944255,154.25,154.21,45.0]
[1724762093801,26.483,154.25,154.21,1.29680212]
[1724762094177,20.0,154.25,154.21,7.78140212]
[1724762094375,20.0,154.25,154.21,6.4846]
[1724762095675,20.0,154.25,154.22,52.78089463]
[1724762096797,11.18077775,154.26,154.22,51.4841]
[1724762096990,0.8243352,154.26,154.23,7.78006869]
[1724762098497,0.8243352,154.26,154.24,7.77990901]